bitfinex-derivatives/quotes_BTCF0:USTF0_20250614
["timestamp","ask_amount","ask_price","bid_price","bid_amount"]
[1749859201039,0.824,106140.0,106130.0,0.09667989]
[1749859201642,0.824,106140.0,106130.0,0.11012323]
[1749859201845,0.824,106140.0,106130.0,0.11012117]
[1749859202138,0.824,106140.0,106130.0,0.15525933]
[1749859202342,0.824,106140.0,106130.0,0.08001191]
[1749859202542,0.824,106140.0,106130.0,0.06659713]
[1749859203341,0.824,106140.0,106130.0,0.09849713]
[1749859203540,1.0123464,106140.0,106130.0,0.38887503]
[1749859204234,0.9816464,106140.0,106130.0,0.3754696]
[1749859204436,0.9816464,106140.0,106130.0,0.42107525]
[1749859204637,0.9816464,106140.0,106130.0,0.42107259]
[1749859204837,0.9816464,106140.0,106130.0,0.4076696]
[1749859205038,0.7308,106140.0,106130.0,0.3637425]
[1749859205337,0.7308,106140.0,106130.0,0.31300067]
[1749859205537,0.7308,106140.0,106130.0,0.44950073]
[1749859205843,0.37,106140.0,106130.0,0.49527558]
[1749859206039,0.9191463,106140.0,106130.0,0.66208073]
[1749859206244,0.5583463,106140.0,106130.0,0.5874994]
[1749859206440,0.9191463,106140.0,106130.0,0.57421152]
[1749859206638,0.9500463,106140.0,106130.0,0.58754622]
[1749859206833,0.9802463,106140.0,106130.0,0.55505781]
[1749859207039,0.9802463,106140.0,106130.0,0.356923]
[1749859207239,1.0104463,106140.0,106130.0,0.29837149]
[1749859207439,1.0104463,106140.0,106130.0,0.35696194]
[1749859207635,1.0104463,106140.0,106130.0,0.37464445]
[1749859207840,0.9802463,106140.0,106130.0,0.37464445]
[1749859208140,0.4009,106140.0,106130.0,0.77968772]
[1749859208342,0.9500463,106140.0,106130.0,0.45127523]
[1749859208541,0.9500463,106140.0,106130.0,0.45132607]
[1749859208743,0.9500463,106140.0,106130.0,0.45133508]
[1749859209049,0.9500463,106140.0,106130.0,0.4513536]
[1749859209647,0.4009,106140.0,106130.0,0.45135298]
[1749859209941,0.4009,106140.0,106130.0,0.45131458]
[1749859210147,0.5892464,106140.0,106130.0,0.45131458]
[1749859210348,0.5892464,106140.0,106130.0,0.45136668]
[1749859210349,0.9500464,106140.0,106130.0,0.45136668]
[1749859210550,0.9500464,106140.0,106130.0,0.43806215]
[1749859210758,0.9500464,106140.0,106130.0,0.45136058]
[1749859211345,0.9500464,106140.0,106130.0,0.45140283]
[1749859211652,0.9500464,106140.0,106130.0,0.41893302]
[1749859211653,0.9500463,106140.0,106130.0,0.41893302]
[1749859211851,0.9500463,106140.0,106130.0,0.41888453]
[1749859212045,0.9500463,106140.0,106130.0,0.40556215]
[1749859212246,0.9500463,106140.0,106130.0,0.41889494]
[1749859212446,0.9500463,106140.0,106130.0,0.38799494]
[1749859212648,0.9809463,106140.0,106130.0,0.3294155]
[1749859213245,0.9809463,106140.0,106130.0,0.32947168]
[1749859213548,0.9809463,106140.0,106130.0,0.32943921]
[1749859213748,0.9809463,106140.0,106130.0,0.32942297]
[1749859214151,0.5583463,106140.0,106130.0,0.45154574]
[1749859214453,0.9191463,106140.0,106130.0,0.41938857]
[1749859214651,0.9509463,106140.0,106130.0,0.41941147]
[1749859214850,0.9509463,106140.0,106130.0,0.4193732]
[1749859215055,0.9509463,106140.0,106130.0,0.38801664]
[1749859215351,0.9826463,106140.0,106130.0,0.3880013]
[1749859215554,0.9826463,106140.0,106130.0,0.38801719]
[1749859215750,0.9826463,106140.0,106130.0,0.38801765]
[1749859215950,0.9826463,106140.0,106130.0,0.38801761]
[1749859216351,0.9826463,106140.0,106130.0,0.37466271]
[1749859216556,0.9826463,106140.0,106130.0,0.47844184]
[1749859216753,0.9826463,106140.0,106130.0,0.47846603]
[1749859217055,1.0132463,106140.0,106130.0,0.46506327]
[1749859217457,1.0132463,106140.0,106130.0,0.29838171]
[1749859217761,1.0132463,106140.0,106130.0,0.2983925]
[1749859217954,1.0132463,106140.0,106130.0,0.28498327]
[1749859218453,1.0132463,106140.0,106130.0,0.11001296]
[1749859218750,1.7860463,106140.0,106130.0,0.2546144]
[1749859219053,1.7860463,106140.0,106130.0,0.24106968]
[1749859219054,1.90383806,106140.0,106130.0,0.24106968]
[1749859219253,1.90383806,106140.0,106130.0,0.25461694]
[1749859219447,1.7860463,106140.0,106130.0,0.05270568]
[1749859219651,1.7860463,106140.0,106130.0,0.25461017]
[1749859219851,1.7860463,106140.0,106130.0,0.25461326]
[1749859220054,1.7860463,106140.0,106130.0,0.06629195]
[1749859220259,1.7860463,106140.0,106130.0,0.06630899]
[1749859220462,1.7860463,106140.0,106130.0,0.05270568]
[1749859220756,1.7860463,106140.0,106130.0,0.25466637]
[1749859220961,1.80248266,106140.0,106130.0,0.2546643]
[1749859221262,1.80248266,106140.0,106130.0,0.24106958]
[1749859221464,1.80248266,106140.0,106130.0,0.25439547]
[1749859221762,1.80248266,106140.0,106130.0,0.24106958]
[1749859221962,1.80248266,106140.0,106130.0,0.25439274]
[1749859222263,1.80248266,106140.0,106130.0,0.25439443]
[1749859222464,1.80248266,106140.0,106130.0,0.2543957]
[1749859222655,1.80248266,106140.0,106130.0,0.06603213]
[1749859222963,1.80248266,106140.0,106130.0,0.25439593]
[1749859223458,1.80248266,106140.0,106130.0,0.25439564]
[1749859223858,1.80248266,106140.0,106130.0,0.25439527]
[1749859224059,1.80248266,106140.0,106130.0,0.25439672]
[1749859224262,1.80248266,106140.0,106130.0,0.24106948]
[1749859224460,1.80248266,106140.0,106130.0,0.25439014]
[1749859224661,1.80248266,106140.0,106130.0,0.25439097]
[1749859224968,1.80248266,106140.0,106130.0,0.24106948]
[1749859225266,1.80248266,106140.0,106130.0,0.25440459]
[1749859225560,1.80248266,106140.0,106130.0,0.06603353]
[1749859225768,1.80248266,106140.0,106130.0,0.2097312]
[1749859225965,1.80248266,106140.0,106130.0,0.2097384]
[1749859226167,1.80248266,106140.0,106130.0,0.19638149]
[1749859226367,1.81175906,106140.0,106130.0,0.24077231]
[1749859226567,1.81175906,106140.0,106130.0,0.25409769]
[1749859226868,1.81175906,106140.0,106130.0,0.25411348]
[1749859227264,1.81175906,106140.0,106130.0,0.06575971]
[1749859227464,1.81175906,106140.0,106130.0,0.06575972]
[1749859227866,1.81175906,106140.0,106130.0,0.06575966]
[1749859228262,1.81175906,106140.0,106130.0,0.06575963]
[1749859228561,1.81175906,106140.0,106130.0,0.06576104]
[1749859228867,1.81175906,106140.0,106130.0,0.06576137]
[1749859229168,1.81175906,106140.0,106130.0,0.06576169]
[1749859229361,1.81175906,106140.0,106130.0,0.02137087]
[1749859229562,1.81175906,106140.0,106130.0,0.02137091]
[1749859230162,1.81175906,106140.0,106130.0,0.00801769]
[1749859230368,1.81175906,106140.0,106130.0,0.02137078]
[1749859230669,1.81175906,106140.0,106130.0,0.00801769]
[1749859230860,1.81175906,106140.0,106130.0,0.20972519]
[1749859231061,1.81175906,106140.0,106130.0,0.02136109]
[1749859231262,1.99151906,106140.0,106130.0,0.06569456]
[1749859231463,1.99151906,106140.0,106130.0,0.06574272]
[1749859232068,1.99151906,106140.0,106130.0,0.06574558]
[1749859232268,1.99151906,106140.0,106130.0,0.05240568]
[1749859233273,1.99151906,106140.0,106130.0,0.06575892]
[1749859233465,1.99151906,106140.0,106130.0,0.05240568]
[1749859233665,1.99151906,106140.0,106130.0,0.06575839]
[1749859233867,2.10931082,106140.0,106130.0,0.00801769]
[1749859234066,2.11055082,106140.0,106130.0,0.02144526]
[1749859234266,2.11055082,106140.0,106130.0,0.02145371]
[1749859234468,2.11055082,106140.0,106130.0,0.02143326]
[1749859234664,2.11055082,106140.0,106130.0,0.00801769]
[1749859234868,2.11055082,106140.0,106130.0,0.02143135]
[1749859235070,1.99275906,106140.0,106130.0,0.00801769]
[1749859235668,1.99275906,106140.0,106130.0,0.02143525]
[1749859235869,1.99275906,106140.0,106130.0,0.02143536]
[1749859236077,1.99275906,106140.0,106130.0,0.02143542]
[1749859236774,1.99275906,106140.0,106130.0,0.02147909]
[1749859236976,1.99275906,106140.0,106130.0,0.02147918]
[1749859237277,1.99275906,106140.0,106130.0,0.02147909]
[1749859237475,1.99275906,106140.0,106130.0,0.02147905]
[1749859237677,2.11055082,106140.0,106130.0,0.02147906]
[1749859238180,2.11055082,106140.0,106130.0,0.00801769]
[1749859238370,2.11055082,106140.0,106130.0,0.021479]
[1749859238676,2.11055082,106140.0,106130.0,0.00801769]
[1749859238876,2.11055082,106140.0,106130.0,0.02147907]
[1749859239077,2.11055082,106140.0,106130.0,0.02147906]
[1749859239770,2.11055082,106140.0,106130.0,0.02147892]
[1749859239972,2.11055082,106140.0,106130.0,0.00801769]
[1749859240276,2.11055082,106140.0,106130.0,0.02147965]
[1749859240580,2.11055082,106140.0,106130.0,0.021484]
[1749859240783,2.11055082,106140.0,106130.0,0.02153266]
[1749859241281,2.11055082,106140.0,106130.0,0.0215294]
[1749859241578,2.11055082,106140.0,106130.0,0.02154657]
[1749859241875,2.11055082,106140.0,106130.0,0.02154712]
[1749859242075,2.11055082,106140.0,106130.0,0.02154701]
[1749859242378,2.11055082,106140.0,106130.0,0.00801769]
[1749859242678,2.11055082,106140.0,106130.0,0.021547]
[1749859242878,2.11055082,106140.0,106130.0,0.00801769]
[1749859243274,2.11055082,106140.0,106130.0,0.02124831]
[1749859243465,2.11055082,106140.0,106130.0,0.00801769]
[1749859243670,2.11055082,106140.0,106130.0,0.02126159]
[1749859243866,2.11055082,106140.0,106130.0,0.02126164]
[1749859244271,2.11055082,106140.0,106130.0,0.02127055]
[1749859244470,2.11055082,106140.0,106130.0,0.02127118]
[1749859244671,2.11055082,106140.0,106130.0,0.00801769]
[1749859244870,2.11055082,106140.0,106130.0,0.02127118]
[1749859245074,2.11055082,106140.0,106130.0,0.02127114]
[1749859245273,2.11055082,106140.0,106130.0,0.02127118]
[1749859245472,1.99275906,106140.0,106130.0,0.02126989]
[1749859245674,2.11055082,106140.0,106130.0,0.02126989]
[1749859245874,2.11055082,106140.0,106130.0,0.02129237]
[1749859246173,2.11055082,106140.0,106130.0,0.02129738]
[1749859246479,2.11055082,106140.0,106130.0,0.02129778]
[1749859246680,2.11055082,106140.0,106130.0,0.00801769]
[1749859246875,2.11055082,106140.0,106130.0,0.02129759]
[1749859247375,2.11055082,106140.0,106130.0,0.02129778]
[1749859247576,2.11055082,106140.0,106130.0,0.00801769]
[1749859247771,2.11055082,106140.0,106130.0,0.02129795]
[1749859248282,2.11055082,106140.0,106130.0,0.00801769]
[1749859248481,2.25769916,106140.0,106130.0,0.02131175]
[1749859248779,2.13999877,106140.0,106130.0,0.02131175]
[1749859248979,2.25769932,106140.0,106130.0,0.02130648]
[1749859249177,2.11045961,106140.0,106130.0,0.0213074]
[1749859249479,2.11045961,106140.0,106130.0,0.00801769]
[1749859249781,2.11045961,106140.0,106130.0,0.0213048]
[1749859249983,2.11045961,106140.0,106130.0,0.00801769]
[1749859250181,2.11045961,106140.0,106130.0,0.0212996]
[1749859250572,2.11045961,106140.0,106130.0,0.02130011]
[1749859250779,2.11045961,106140.0,106130.0,0.00801769]
[1749859251175,2.11045961,106140.0,106130.0,0.02130004]
[1749859251379,2.11045961,106140.0,106130.0,0.0213001]
[1749859251578,2.11045961,106140.0,106130.0,0.02130172]
[1749859251780,2.11045961,106140.0,106130.0,0.02130171]
[1749859252078,2.11045961,106140.0,106130.0,0.00801769]
[1749859252274,1.15665961,106140.0,106130.0,0.02130263]
[1749859252478,2.11069961,106140.0,106130.0,0.00801769]
[1749859252874,1.99299906,106140.0,106130.0,0.02130491]
[1749859253076,2.14023877,106140.0,106130.0,0.02127813]
[1749859253583,2.14023877,106140.0,106130.0,0.02129537]
[1749859253978,2.14023877,106140.0,106130.0,0.02130568]
[1749859254483,2.14023877,106140.0,106130.0,0.02130566]
[1749859254678,2.14023877,106140.0,106130.0,0.00801769]
[1749859254889,2.14023877,106140.0,106130.0,0.0213063]
[1749859255181,2.14023877,106140.0,106130.0,0.02130629]
[1749859255383,2.14023877,106140.0,106130.0,0.0213317]
[1749859255577,2.14023877,106140.0,106130.0,0.02133171]
[1749859255981,2.14023877,106140.0,106130.0,0.00801769]
[1749859256379,2.14023877,106140.0,106130.0,0.02133166]
[1749859256577,2.14023877,106140.0,106130.0,0.02133164]
[1749859256778,2.14023877,106140.0,106130.0,0.00801769]
[1749859256977,2.14023877,106140.0,106130.0,0.02133188]
[1749859257176,2.14023877,106140.0,106130.0,0.00801769]
[1749859257583,2.14023877,106140.0,106130.0,0.02133185]
[1749859257786,2.14023877,106140.0,106130.0,0.02133217]
[1749859258083,2.14023877,106140.0,106130.0,0.02133234]
[1749859258285,2.14023877,106140.0,106130.0,0.02134784]
[1749859258480,2.14023877,106140.0,106130.0,0.00801769]
[1749859258678,2.14023877,106140.0,106130.0,0.02134925]
[1749859258879,2.14023877,106140.0,106130.0,0.0213507]
[1749859259079,2.14023877,106140.0,106130.0,0.02135067]
[1749859259281,2.14023877,106140.0,106130.0,0.00801769]
[1749859259581,2.14023877,106140.0,106130.0,0.02135067]
[1749859259783,2.14023877,106140.0,106130.0,0.02135046]
[1749859259982,2.14023877,106140.0,106130.0,0.00801769]
[1749859260182,2.14023877,106140.0,106130.0,0.02135023]
[1749859260382,2.14023877,106140.0,106130.0,0.02135018]
[1749859260586,2.14023877,106140.0,106130.0,0.00801769]
[1749859261284,2.14023877,106140.0,106130.0,0.0213537]
[1749859261688,2.14023877,106140.0,106130.0,0.02135715]
[1749859261881,2.14023877,106140.0,106130.0,0.02136082]
[1749859262179,2.2579625,106140.0,106130.0,0.02135985]
[1749859262383,1.99299906,106140.0,106130.0,0.02146119]
[1749859262587,2.14023877,106140.0,106130.0,0.00801769]
[1749859262786,2.14023877,106140.0,106130.0,0.02149508]
[1749859263083,2.14023877,106140.0,106130.0,0.00801769]
[1749859263289,2.14023877,106140.0,106130.0,0.02149462]
[1749859263487,2.14023877,106140.0,106130.0,0.02149534]
[1749859263986,1.24509465,106140.0,106130.0,0.00801769]
[1749859264187,2.20241465,106140.0,106130.0,0.00801769]
[1749859264485,2.34956714,106140.0,106130.0,0.0194061]
[1749859264687,2.35056714,106140.0,106130.0,0.01739581]
[1749859264882,2.35056802,106140.0,106130.0,0.00401769]
[1749859265080,2.20341465,106140.0,106130.0,0.01716068]
[1749859265386,2.20341465,106140.0,106130.0,0.01717642]
[1749859265586,2.20341465,106140.0,106130.0,0.01717461]
[1749859265788,2.35055594,106140.0,106130.0,0.00401769]
[1749859266087,2.14442035,106140.0,106130.0,0.01718064]
[1749859266288,2.14442035,106140.0,106130.0,0.01718929]
[1749859266488,2.14442035,106140.0,106130.0,0.01719069]
[1749859266787,2.14442035,106140.0,106130.0,0.01719094]
[1749859266988,2.14442035,106140.0,106130.0,0.01719907]
[1749859267186,2.14442035,106140.0,106130.0,0.01719608]
[1749859268086,2.14442035,106140.0,106130.0,0.01717444]
[1749859268285,2.14442035,106140.0,106130.0,0.00401769]
[1749859268490,2.14442035,106140.0,106130.0,0.01717444]
[1749859268692,2.14442035,106140.0,106130.0,0.01717433]
[1749859268884,2.14442035,106140.0,106130.0,0.01717431]
[1749859269084,2.14442035,106140.0,106130.0,0.00401769]
[1749859269285,2.14442035,106140.0,106130.0,0.01719613]
[1749859269484,2.14442035,106140.0,106130.0,0.00401769]
[1749859269685,2.14442035,106140.0,106130.0,0.01719627]
[1749859270488,2.14442035,106140.0,106130.0,0.00401769]
[1749859270694,2.14442035,106140.0,106130.0,0.01719623]
[1749859270990,0.1883627,106130.0,106120.0,0.03069998]
[1749859271190,0.1883804,106120.0,106110.0,0.06194185]
[1749859271391,0.1884337,106090.0,106080.0,0.19676194]
[1749859271595,2.2589598,106090.0,106080.0,0.40619358]
[1749859272094,2.26830503,106090.0,106080.0,0.35908108]
[1749859273099,2.26930503,106090.0,106080.0,0.35908108]
[1749859273397,2.34450295,106090.0,106080.0,0.3147588]
[1749859273594,2.34450295,106090.0,106070.0,0.32994755]
[1749859273595,0.1884514,106080.0,106070.0,0.32994755]
[1749859273895,0.8792514,106080.0,106070.0,0.31363095]
[1749859274382,0.8792514,106080.0,106070.0,0.37703095]
[1749859274786,1.8410114,106080.0,106070.0,0.37703095]
[1749859275294,0.8792514,106080.0,106070.0,0.37903095]
[1749859275499,1.8408514,106080.0,106070.0,0.37903095]
[1749859275796,1.8406514,106080.0,106070.0,0.38003095]
[1749859275992,1.8406114,106080.0,106070.0,0.38003095]
[1749859278097,1.8402514,106080.0,106070.0,0.38003095]
[1749859278700,0.8792514,106080.0,106070.0,0.38003095]
[1749859278902,1.8400914,106080.0,106070.0,0.38003095]
[1749859279599,1.8400914,106080.0,106070.0,0.3841693]
[1749859281401,1.0938714,106080.0,106070.0,0.0706802]
[1749859281597,1.1240714,106080.0,106070.0,0.0391802]
[1749859281798,1.9016314,106080.0,106070.0,0.0391802]
[1749859282493,1.9016314,106080.0,106070.0,0.2276495]
[1749859282701,1.9026314,106080.0,106070.0,0.2246495]
[1749859282998,1.9026314,106080.0,106070.0,0.23848892]
[1749859283202,1.9028314,106080.0,106070.0,0.2246495]
[1749859283397,1.9028314,106080.0,106070.0,0.27112879]
[1749859283709,1.9028314,106080.0,106070.0,0.27113143]
[1749859284003,1.9028314,106080.0,106070.0,0.2711116]
[1749859284198,1.9028314,106080.0,106070.0,0.2573495]
[1749859284396,1.9028314,106080.0,106070.0,0.27112294]
[1749859284794,1.9028314,106080.0,106070.0,0.2708888]
[1749859284997,1.9028314,106080.0,106070.0,0.27090473]
[1749859285199,1.9028314,106080.0,106070.0,0.23820473]
[1749859285506,1.9028314,106080.0,106070.0,0.2246495]
[1749859286004,1.9028314,106080.0,106070.0,0.23821978]
[1749859286406,1.9028314,106080.0,106070.0,0.23821979]
[1749859286607,1.9028314,106080.0,106070.0,0.23822612]
[1749859286805,1.9031514,106080.0,106070.0,0.23822617]
[1749859287001,1.9031514,106080.0,106070.0,0.2246495]
[1749859287206,1.9031514,106080.0,106070.0,0.23823015]
[1749859287403,1.9031514,106080.0,106070.0,0.2246495]
[1749859287599,0.9421514,106080.0,106070.0,0.2246495]
[1749859287802,1.9029914,106080.0,106070.0,0.2246495]
[1749859288002,1.9029914,106080.0,106070.0,0.23823878]
[1749859288200,1.9029914,106080.0,106070.0,0.23826012]
[1749859288406,1.9029914,106080.0,106070.0,0.23938464]
[1749859288604,1.9029914,106080.0,106070.0,0.23938461]
[1749859288804,1.9029914,106080.0,106070.0,0.23938479]
[1749859289007,1.9029914,106080.0,106070.0,0.25300281]
[1749859289210,1.9029914,106080.0,106070.0,0.25302361]
[1749859289400,1.9029914,106080.0,106070.0,0.25302431]
[1749859289596,1.9029914,106080.0,106070.0,0.2246495]
[1749859289804,1.9029914,106080.0,106070.0,0.03267616]
[1749859290006,1.9029914,106080.0,106040.0,0.235649]
[1749859290007,0.2356458,106050.0,106040.0,0.235649]
[1749859290201,2.36047333,106050.0,106040.0,0.20251799]
[1749859290397,2.36047333,106050.0,106040.0,0.23364314]
[1749859290596,2.39317333,106050.0,106040.0,0.2195225]
[1749859290809,1.43093333,106050.0,106040.0,0.2195225]
[1749859291006,2.39301333,106050.0,106040.0,0.2503225]
[1749859291205,2.39301333,106050.0,106040.0,0.2513225]
[1749859291409,2.39301333,106050.0,106040.0,0.2513215]
[1749859291606,2.42361333,106050.0,106040.0,0.23565912]
[1749859291811,2.42361333,106050.0,106040.0,0.2215215]
[1749859291999,2.42361333,106050.0,106040.0,0.01616543]
[1749859292201,2.45471333,106050.0,106040.0,0.01616543]
[1749859292504,2.44858157,106050.0,106040.0,0.01622706]
[1749859292706,2.44858157,106050.0,106040.0,0.01622916]
[1749859293105,2.44858157,106050.0,106040.0,0.20475161]
[1749859293311,2.44858157,106050.0,106040.0,0.20475202]
[1749859293505,2.44858157,106050.0,106040.0,0.20474862]
[1749859293706,2.44858157,106050.0,106040.0,0.20469572]
[1749859293906,2.44858157,106050.0,106040.0,0.190522]
[1749859294207,2.44858157,106050.0,106040.0,0.20469297]
[1749859294404,0.1885576,106020.0,106010.0,0.0911065]
[1749859294715,0.20500331,106010.0,106000.0,0.2971258]
[1749859294901,0.89433795,106010.0,106000.0,0.2967506]
[1749859295404,0.37722791,106010.0,106000.0,0.2967506]
[1749859295611,0.56580301,106010.0,106000.0,0.2967506]
[1749859296111,0.38673107,106010.0,106000.0,0.2967506]
[1749859296308,0.91530617,106010.0,106000.0,0.2967506]
[1749859296506,0.38673107,106010.0,106000.0,0.2967506]
[1749859296709,0.01642791,106010.0,106000.0,0.2967506]
[1749859297010,0.37722791,106010.0,106000.0,0.34086801]
[1749859297314,0.37722791,106010.0,106000.0,0.34186801]
[1749859297515,0.37722791,106010.0,106000.0,0.34286801]
[1749859297908,0.45266051,106010.0,106000.0,0.34286801]
[1749859299010,0.09186051,106010.0,106000.0,0.34286801]
[1749859299514,0.64123281,106010.0,106000.0,0.34286801]
[1749859299711,0.96123281,106010.0,106000.0,0.37506801]
[1749859299906,0.67213281,106010.0,106000.0,0.37506801]
[1749859300215,1.00213281,106010.0,106000.0,0.3309506]
[1749859300417,0.67213281,106010.0,106000.0,0.37497858]
[1749859302015,0.67213361,106010.0,106000.0,0.3309506]
[1749859302613,0.48356051,106010.0,106000.0,0.34549509]
[1749859302807,1.01213361,106010.0,106000.0,0.34549507]
[1749859303004,0.67213361,106010.0,106000.0,0.34549507]
[1749859303205,0.67213361,106010.0,106000.0,0.3309506]
[1749859303409,0.48356051,106010.0,106000.0,0.3309506]
[1749859303610,0.48356051,106010.0,106000.0,0.34549508]
[1749859303611,0.63814051,106010.0,106000.0,0.34549508]
[1749859303810,0.45266051,106010.0,106000.0,0.34549399]
[1749859304015,0.45266051,106010.0,106000.0,0.53101403]
[1749859304412,0.45266051,106010.0,106000.0,0.5164706]
[1749859304618,0.45266051,106010.0,106000.0,0.53101386]
[1749859304913,0.45266051,106010.0,106000.0,0.5164706]
[1749859305316,0.45266051,106010.0,106000.0,0.53101385]
[1749859305619,0.45266051,106010.0,106000.0,0.57503902]
[1749859305814,0.4362326,106010.0,106000.0,0.57513198]
[1749859306018,0.0754326,106010.0,106000.0,0.90483184]
[1749859306317,0.37795545,106020.0,106010.0,0.1885727]
[1749859306517,0.37795545,106020.0,106010.0,0.29569794]
[1749859306518,0.37758025,106020.0,106010.0,0.29569794]
[1749859306719,0.38758025,106020.0,106010.0,0.29569794]
[1749859306917,0.38758025,106020.0,106010.0,0.31033097]
[1749859307224,0.46426532,106020.0,106010.0,0.31033096]
[1749859307417,0.46426532,106020.0,106010.0,0.29569794]
[1749859307715,0.46526532,106020.0,106010.0,0.29569794]
[1749859307918,0.46526532,106020.0,106010.0,0.31032997]
[1749859308117,0.46526532,106020.0,106010.0,0.310329]
[1749859308322,0.46526532,106020.0,106010.0,0.29569794]
[1749859308514,0.46526532,106020.0,106010.0,0.31032853]
[1749859308717,0.46526532,106020.0,106010.0,0.29569794]
[1749859309116,0.47477951,106020.0,106010.0,0.31032866]
[1749859309317,0.47477951,106020.0,106010.0,0.31032855]
[1749859309516,0.47477951,106020.0,106010.0,0.29569794]
[1749859309922,0.47477951,106020.0,106010.0,0.31446716]
[1749859310111,0.47477951,106020.0,106010.0,0.31446705]
[1749859310311,0.47477951,106020.0,106010.0,0.29983629]
[1749859310312,0.46526532,106020.0,106010.0,0.29983629]
[1749859310515,0.46526532,106020.0,106010.0,0.31446705]
[1749859310918,0.46526532,106020.0,106010.0,0.29983629]
[1749859312725,0.46125773,106020.0,106010.0,0.29983629]
[1749859313821,0.47087152,106020.0,106010.0,0.29983629]
[1749859315220,0.47087152,106020.0,106010.0,0.34379909]
[1749859318428,0.47087152,106020.0,106010.0,0.40237853]
[1749859318927,0.09045773,106020.0,106010.0,0.90141294]
[1749859319124,0.09045773,106020.0,106010.0,0.8428335]
[1749859319321,0.09045773,106020.0,106010.0,0.69684324]
[1749859319517,0.09045773,106020.0,106010.0,1.06764324]
[1749859320026,3e-08,106020.0,106010.0,1.31764324]
[1749859320230,3e-08,106020.0,106010.0,1.71542856]
[1749859320426,8e-08,106030.0,106020.0,0.1885556]
[1749859320625,8e-08,106030.0,106020.0,1.58689075]
[1749859320927,8e-08,106030.0,106020.0,1.68121075]
[1749859321626,8e-08,106030.0,106020.0,1.28113075]
[1749859321825,0.01673003,106050.0,106040.0,0.1885201]
[1749859322024,0.01673003,106050.0,106040.0,0.93106607]
[1749859322223,0.01673003,106050.0,106040.0,1.83880207]
[1749859322527,0.09204906,106050.0,106040.0,1.83880207]
[1749859322720,0.01673003,106050.0,106040.0,0.51208207]
[1749859322925,0.37753003,106050.0,106040.0,1.53638663]
[1749859323319,0.01673003,106050.0,106040.0,1.53638663]
[1749859324022,0.01673003,106050.0,106040.0,1.44257063]
[1749859324226,0.01673003,106050.0,106040.0,1.58076238]
[1749859324418,0.01673003,106050.0,106040.0,1.58376238]
[1749859324727,0.01673003,106050.0,106040.0,1.58576238]
[1749859325120,0.01673003,106050.0,106040.0,1.40352565]
[1749859325320,0.01673003,106050.0,106040.0,0.441464]
[1749859325525,0.01673003,106050.0,106040.0,1.408104]
[1749859326426,0.37753003,106050.0,106040.0,1.408104]
[1749859327121,0.45332438,106050.0,106040.0,1.408104]
[1749859327926,0.45332438,106050.0,106040.0,0.441464]
[1749859328232,0.45332438,106050.0,106040.0,1.34899944]
[1749859328630,0.45332438,106050.0,106040.0,0.38287944]
[1749859328830,0.45332438,106050.0,106040.0,1.34939944]
[1749859332231,0.09252438,106050.0,106040.0,1.34939944]
[1749859332735,0.09252438,106050.0,106040.0,1.72019944]
[1749859333123,0.09252438,106050.0,106040.0,1.35939944]
[1749859333328,0.09252438,106050.0,106040.0,1.72019944]
[1749859334033,0.00014185,106060.0,106050.0,0.1885018]
[1749859334233,0.00014185,106060.0,106050.0,0.65652704]
[1749859334533,0.00014185,106060.0,106050.0,0.79471079]
[1749859334735,0.00014185,106060.0,106050.0,2.57787079]
[1749859334931,0.00014185,106060.0,106050.0,2.17317504]
[1749859335136,0.00014185,106060.0,106050.0,2.17305504]
[1749859335334,0.00014185,106060.0,106050.0,2.17393504]
[1749859336337,0.00014185,106060.0,106050.0,1.25287079]
[1749859336538,0.00014185,106060.0,106050.0,2.17693504]
[1749859336837,0.00014185,106060.0,106050.0,2.17593504]
[1749859337039,0.00014185,106060.0,106050.0,2.18093504]
[1749859337643,5e-08,106060.0,106050.0,2.18093504]
[1749859337934,0.3608,106080.0,106070.0,0.1884666]
[1749859338127,0.4732661,106090.0,106080.0,0.1884488]
[1749859338529,0.4732661,106090.0,106080.0,0.23223581]
[1749859338738,0.4732661,106090.0,106080.0,0.1884488]
[1749859338933,0.4401661,106090.0,106080.0,0.2821488]
[1749859339137,0.4101661,106090.0,106080.0,0.32592061]
[1749859340239,0.41939461,106090.0,106080.0,0.32592061]
[1749859340434,0.49392659,106090.0,106080.0,0.33005896]
[1749859340638,0.49492659,106090.0,106080.0,0.33005896]
[1749859341232,0.05959461,106090.0,106080.0,0.33305896]
[1749859341440,0.0503661,106090.0,106080.0,0.33305896]
[1749859342141,0.0493661,106090.0,106080.0,0.33505896]
[1749859342544,0.4101661,106090.0,106080.0,1.30261896]
[1749859342734,0.4404661,106090.0,106080.0,0.33505896]
[1749859342934,0.4404661,106090.0,106080.0,1.30277896]
[1749859343439,0.4404661,106090.0,106080.0,0.33505896]
[1749859343643,0.4404661,106090.0,106080.0,1.30333896]
[1749859343841,0.44967066,106090.0,106080.0,1.30333896]
[1749859344339,0.44967066,106090.0,106080.0,0.33505896]
[1749859344538,1.00810226,106090.0,106080.0,0.24135896]
[1749859344743,1.19338226,106090.0,106080.0,0.19758765]
[1749859344933,0.98810226,106090.0,106080.0,0.19758765]
[1749859345135,1.26990136,106090.0,106080.0,0.19758765]
[1749859345337,1.27990136,106090.0,106080.0,0.19758765]
[1749859345631,1.21990136,106090.0,106080.0,0.19758765]
[1749859347445,1.03462136,106090.0,106080.0,0.19758765]
[1749859347631,0.95990126,106090.0,106080.0,0.19758765]
[1749859347942,0.58618976,106090.0,106080.0,0.19758765]
[1749859349145,0.5769852,106090.0,106080.0,0.19758765]
[1749859349339,0.5769852,106090.0,106080.0,0.47032331]
[1749859349539,0.1561852,106090.0,106080.0,0.50152331]
[1749859349740,0.5169852,106090.0,106080.0,0.50152331]
[1749859351747,0.52638712,106090.0,106080.0,0.50152331]
[1749859351949,0.5169852,106090.0,106080.0,0.50152331]
[1749859356847,0.7054167,106090.0,106080.0,0.28504331]
[1749859357151,1.0654167,106090.0,106080.0,0.24124012]
[1749859357646,0.7054167,106090.0,106080.0,0.24124012]
[1749859358350,0.5169852,106090.0,106080.0,0.24124012]
[1749859360051,0.7054167,106090.0,106080.0,0.24124012]
[1749859360250,0.5169852,106090.0,106080.0,0.24124012]
[1749859360646,0.7054167,106090.0,106080.0,0.24124012]
[1749859360852,0.5169852,106090.0,106080.0,0.24124012]
[1749859361948,0.7054167,106090.0,106080.0,0.24124012]
[1749859362742,0.5169852,106090.0,106080.0,0.24124012]
[1749859362947,0.7054166,106090.0,106080.0,0.24124012]
[1749859363147,0.5169852,106090.0,106080.0,0.24124012]
[1749859364155,0.8269852,106090.0,106080.0,0.24124012]
[1749859364355,0.5169852,106090.0,106080.0,0.24124012]
[1749859364552,0.8569852,106090.0,106080.0,0.24124012]
[1749859364759,0.5169852,106090.0,106080.0,0.24124012]
[1749859365057,1.0554167,106090.0,106080.0,0.24124012]
[1749859365255,0.7054167,106090.0,106080.0,0.24124012]
[1749859365849,1.0354167,106090.0,106080.0,0.24124012]
[1749859366055,0.7054167,106090.0,106080.0,0.24124012]
[1749859366359,1.0854167,106090.0,106080.0,0.24124012]
[1749859366751,1.0254167,106090.0,106080.0,0.24124012]
[1749859367051,0.7054167,106090.0,106080.0,0.24105813]